[Event "Late-Titled-Tuesday-Blitz-June-25-2024"]
[Site "Chess.com"]
[Date "2024.06.25"]
[Round "9"]
[White "Winner_7777"]
[Black "GlavkonVVS"]
[Result "0-1"]
[WhiteElo "2524"]
[BlackElo "2645"]
[TimeControl "180+1"]
[EndTime "15:43:51 PDT"]
[Termination "GlavkonVVS won on time"]

1. d4 {[%clk 0:03:00.9]} 1... Nf6 {[%clk 0:03:00.1]} 2. c4 {[%clk 0:03:00.4]}
2... c5 {[%clk 0:03:00.1]} 3. d5 {[%clk 0:03:00.2]} 3... e6 {[%clk 0:03:00.3]}
4. Nc3 {[%clk 0:03:00]} 4... exd5 {[%clk 0:03:00.8]} 5. cxd5 {[%clk 0:03:00.9]}
5... d6 {[%clk 0:03:01.4]} 6. e4 {[%clk 0:03:01.8]} 6... g6 {[%clk 0:03:01.9]}
7. f4 {[%clk 0:03:02.5]} 7... Bg7 {[%clk 0:03:02.3]} 8. Bb5+ {[%clk 0:03:03.2]}
8... Nfd7 {[%clk 0:03:01.6]} 9. a4 {[%clk 0:03:01.6]} 9... O-O {[%clk
0:03:01.4]} 10. Nf3 {[%clk 0:03:00.1]} 10... Na6 {[%clk 0:03:00.9]} 11. O-O
{[%clk 0:03:00.3]} 11... Nb4 {[%clk 0:03:00.5]} 12. Be2 {[%clk 0:02:40.5]} 12...
Re8 {[%clk 0:02:57.5]} 13. Nd2 {[%clk 0:02:39.3]} 13... Nf6 {[%clk 0:02:55.1]}
14. Bf3 {[%clk 0:02:38]} 14... Nd3 {[%clk 0:02:52.5]} 15. Nc4 {[%clk 0:02:36.6]}
15... Nxc1 {[%clk 0:02:52.6]} 16. Rxc1 {[%clk 0:02:36.9]} 16... a6 {[%clk
0:02:51.4]} 17. a5 {[%clk 0:02:33.1]} 17... h5 {[%clk 0:02:45.1]} 18. h3 {[%clk
0:02:13.2]} 18... Rb8 {[%clk 0:02:32.7]} 19. e5 {[%clk 0:01:53.5]} 19... dxe5
{[%clk 0:02:30]} 20. fxe5 {[%clk 0:01:54.4]} 20... Nh7 {[%clk 0:02:21.9]} 21.
Bxh5 {[%clk 0:01:13.1]} 21... gxh5 {[%clk 0:02:19]} 22. Qxh5 {[%clk 0:01:14]}
22... Rf8 {[%clk 0:02:01.1]} 23. Rcd1 {[%clk 0:00:49.7]} 23... Qg5 {[%clk
0:01:59.4]} 24. Qe2 {[%clk 0:00:44.4]} 24... Bxh3 {[%clk 0:01:56.6]} 25. Ne4
{[%clk 0:00:38.1]} 25... Qg6 {[%clk 0:01:55.9]} 26. Rd3 {[%clk 0:00:20]} 26...
Bf5 {[%clk 0:01:47.1]} 27. Rg3 {[%clk 0:00:19]} 27... Bxe4 {[%clk 0:01:43.1]}
28. Rxg6 {[%clk 0:00:19]} 28... Bxg6 {[%clk 0:01:43.6]} 29. e6 {[%clk
0:00:17.6]} 29... Bd4+ {[%clk 0:01:39.7]} 30. Kh1 {[%clk 0:00:16.2]} 30... Kg7
{[%clk 0:01:29.3]} 31. e7 {[%clk 0:00:15.8]} 31... Rh8 {[%clk 0:01:28.9]} 32. g3
{[%clk 0:00:13.4]} 32... Ng5+ {[%clk 0:01:27.8]} 33. Kg2 {[%clk 0:00:14]} 33...
Be4+ {[%clk 0:01:27.8]} 34. Qxe4 {[%clk 0:00:06.5]} 34... Nxe4 {[%clk
0:01:27.4]} 35. Rf4 {[%clk 0:00:07]} 35... Nf6 {[%clk 0:01:25.1]} 36. d6 {[%clk
0:00:06.9]} 36... Nd7 {[%clk 0:01:22.5]} 37. Nb6 {[%clk 0:00:05.1]} 37... Nxb6
{[%clk 0:01:19.6]} 38. axb6 {[%clk 0:00:06]} 38... Bf6 {[%clk 0:01:17.7]} 39.
Rg4+ {[%clk 0:00:05]} 39... Kh6 {[%clk 0:01:16.8]} 40. Rf4 {[%clk 0:00:02.7]}
40... Kg6 {[%clk 0:01:16.4]} 41. Rg4+ {[%clk 0:00:02.8]} 41... Kf5 {[%clk
0:01:16.5]} 42. Rf4+ {[%clk 0:00:03.3]} 42... Ke6 {[%clk 0:01:16.8]} 0-1

[Event "Late-Titled-Tuesday-Blitz-June-25-2024"]
[Site "Chess.com"]
[Date "2024.06.25"]
[Round "9"]
[White "yaguigor"]
[Black "rionelG"]
[Result "1-0"]
[WhiteElo "2558"]
[BlackElo "2395"]
[TimeControl "180+1"]
[EndTime "15:43:51 PDT"]
[Termination "yaguigor won on time"]

1. Nf3 {[%clk 0:03:00.9]} 1... Nf6 {[%clk 0:02:13.9]} 2. c4 {[%clk 0:02:57.3]}
2... g6 {[%clk 0:02:13.7]} 3. Nc3 {[%clk 0:02:56.9]} 3... Bg7 {[%clk 0:02:14.6]}
4. e4 {[%clk 0:02:56.9]} 4... O-O {[%clk 0:02:15.5]} 5. d4 {[%clk 0:02:57.1]}
5... d6 {[%clk 0:02:15.5]} 6. Be2 {[%clk 0:02:56.6]} 6... Na6 {[%clk 0:02:15.8]}
7. Be3 {[%clk 0:02:53.5]} 7... e5 {[%clk 0:02:16]} 8. d5 {[%clk 0:02:44]} 8...
Nc5 {[%clk 0:02:13.7]} 9. Nd2 {[%clk 0:02:42.3]} 9... a5 {[%clk 0:02:09.8]} 10.
g4 {[%clk 0:02:23.5]} 10... Ne8 {[%clk 0:02:08.2]} 11. h4 {[%clk 0:02:19.4]}
11... f5 {[%clk 0:02:07.7]} 12. gxf5 {[%clk 0:02:18.5]} 12... gxf5 {[%clk
0:02:07.1]} 13. exf5 {[%clk 0:02:14.9]} 13... Bxf5 {[%clk 0:02:02.8]} 14. Bxc5
{[%clk 0:02:12.4]} 14... dxc5 {[%clk 0:02:02.3]} 15. Bg4 {[%clk 0:02:05]} 15...
Nd6 {[%clk 0:01:48.8]} 16. Qe2 {[%clk 0:01:43.4]} 16... Qc8 {[%clk 0:01:37.3]}
17. Rg1 {[%clk 0:01:38.3]} 17... e4 {[%clk 0:01:34.3]} 18. O-O-O {[%clk
0:01:28]} 18... Kh8 {[%clk 0:01:25.2]} 19. Ndxe4 {[%clk 0:01:22.9]} 19... Qd7
{[%clk 0:00:26.3]} 20. Nxc5 {[%clk 0:01:19.5]} 20... Qf7 {[%clk 0:00:25.7]} 21.
Ne6 {[%clk 0:01:05.4]} 21... Bh6+ {[%clk 0:00:24.7]} 22. f4 {[%clk 0:01:02.2]}
22... Bxe6 {[%clk 0:00:21.7]} 23. Bxe6 {[%clk 0:00:56.6]} 23... Qxf4+ {[%clk
0:00:20.9]} 24. Kb1 {[%clk 0:00:57.3]} 24... Nxc4 {[%clk 0:00:18.4]} 25. Rg4
{[%clk 0:00:54.4]} 25... Na3+ {[%clk 0:00:03.5]} 26. bxa3 {[%clk 0:00:51.3]}
26... Qd6 {[%clk 0:00:01]} 27. Nb5 {[%clk 0:00:42.8]} 1-0

[Event "Late-Titled-Tuesday-Blitz-June-25-2024"]
[Site "Chess.com"]
[Date "2024.06.25"]
[Round "9"]
[White "MatthewG-p4p"]
[Black "Gangster-accountant01"]
[Result "1-0"]
[WhiteElo "2925"]
[BlackElo "2601"]
[TimeControl "180+1"]
[EndTime "15:43:56 PDT"]
[Termination "MatthewG-p4p won by resignation"]

1. e4 {[%clk 0:02:56.9]} 1... e5 {[%clk 0:02:53.2]} 2. Nf3 {[%clk 0:02:57]} 2...
Nf6 {[%clk 0:02:53]} 3. d4 {[%clk 0:02:56]} 3... Nxe4 {[%clk 0:02:50.8]} 4. Bd3
{[%clk 0:02:56]} 4... d5 {[%clk 0:02:50.3]} 5. Nxe5 {[%clk 0:02:55.4]} 5... Nc6
{[%clk 0:02:40.3]} 6. Nxc6 {[%clk 0:02:34.9]} 6... bxc6 {[%clk 0:02:36.6]} 7.
O-O {[%clk 0:02:35.2]} 7... Bd6 {[%clk 0:02:20.7]} 8. Nd2 {[%clk 0:02:19.2]}
8... f5 {[%clk 0:02:07.8]} 9. c4 {[%clk 0:02:10.1]} 9... O-O {[%clk 0:02:03.6]}
10. Nf3 {[%clk 0:02:00]} 10... Kh8 {[%clk 0:01:56.9]} 11. c5 {[%clk 0:01:59.4]}
11... Be7 {[%clk 0:01:54.6]} 12. Ne5 {[%clk 0:01:59.8]} 12... Bf6 {[%clk
0:01:46.1]} 13. Nxc6 {[%clk 0:01:58.1]} 13... Qe8 {[%clk 0:01:45.9]} 14. Ne5
{[%clk 0:01:56.7]} 14... Bxe5 {[%clk 0:01:44.6]} 15. dxe5 {[%clk 0:01:57]} 15...
Qxe5 {[%clk 0:01:44.5]} 16. Re1 {[%clk 0:01:53.4]} 16... Qf6 {[%clk 0:01:31.3]}
17. Bc2 {[%clk 0:01:32.9]} 17... c6 {[%clk 0:01:20.7]} 18. Be3 {[%clk
0:01:32.6]} 18... Ba6 {[%clk 0:01:05.4]} 19. f3 {[%clk 0:01:25.6]} 19... Ng5
{[%clk 0:01:03.5]} 20. Bd4 {[%clk 0:01:26.1]} 20... Qf7 {[%clk 0:00:58.1]} 21.
Qd2 {[%clk 0:01:09.6]} 21... Ne6 {[%clk 0:00:47.6]} 22. Be5 {[%clk 0:01:10]}
22... Rfe8 {[%clk 0:00:32.5]} 23. Bd6 {[%clk 0:00:59.6]} 23... Qf6 {[%clk
0:00:31.9]} 24. Re5 {[%clk 0:00:57.7]} 24... Nf8 {[%clk 0:00:01.5]} 25. Rae1
{[%clk 0:00:56.1]} 25... Rxe5 {[%clk 0:00:01.5]} 26. Bxe5 {[%clk 0:00:56.7]}
26... Qg6 {[%clk 0:00:01.5]} 27. Qa5 {[%clk 0:00:53.4]} 27... Bb5 {[%clk
0:00:01.3]} 28. Bd6 {[%clk 0:00:52.7]} 28... Bc4 {[%clk 0:00:01.9]} 29. Qc7
{[%clk 0:00:51.3]} 29... Bb5 {[%clk 0:00:02.2]} 30. Re7 {[%clk 0:00:47.7]} 30...
h5 {[%clk 0:00:02.1]} 31. Rxg7 {[%clk 0:00:46.7]} 31... Ne6 {[%clk 0:00:02.4]}
32. Rxg6 {[%clk 0:00:45.6]} 32... Nxc7 {[%clk 0:00:03.1]} 33. Bxc7 {[%clk
0:00:46.2]} 33... Kh7 {[%clk 0:00:03.7]} 34. Bxf5 {[%clk 0:00:45.9]} 1-0

[Event "Late-Titled-Tuesday-Blitz-June-25-2024"]
[Site "Chess.com"]
[Date "2024.06.25"]
[Round "9"]
[White "MagnusCarlsen"]
[Black "GM_dmitrij"]
[Result "1-0"]
[WhiteElo "3173"]
[BlackElo "2980"]
[TimeControl "180+1"]
[EndTime "15:44:02 PDT"]
[Termination "MagnusCarlsen won by resignation"]

1. e4 {[%clk 0:02:59.2]} 1... e5 {[%clk 0:02:18.5]} 2. Nf3 {[%clk 0:02:57.3]}
2... Nc6 {[%clk 0:02:19.4]} 3. Bc4 {[%clk 0:02:56.7]} 3... Nf6 {[%clk
0:02:19.3]} 4. d3 {[%clk 0:02:57.1]} 4... Bc5 {[%clk 0:02:19.3]} 5. O-O {[%clk
0:02:57.2]} 5... d6 {[%clk 0:02:19.6]} 6. c3 {[%clk 0:02:56.1]} 6... O-O {[%clk
0:02:17.9]} 7. h3 {[%clk 0:02:47.5]} 7... a5 {[%clk 0:02:17.9]} 8. Nbd2 {[%clk
0:02:45]} 8... Be6 {[%clk 0:02:16.7]} 9. Bb5 {[%clk 0:02:44.7]} 9... Ba7 {[%clk
0:02:16.9]} 10. Nc4 {[%clk 0:02:37.8]} 10... h6 {[%clk 0:02:07]} 11. Be3 {[%clk
0:02:35]} 11... Ne7 {[%clk 0:02:02]} 12. Bxa7 {[%clk 0:02:33.7]} 12... Rxa7
{[%clk 0:02:02.9]} 13. Ne3 {[%clk 0:02:34.1]} 13... Ng6 {[%clk 0:01:53.2]} 14.
Re1 {[%clk 0:02:33.9]} 14... c6 {[%clk 0:01:47.3]} 15. Ba4 {[%clk 0:02:33.3]}
15... b5 {[%clk 0:01:46.5]} 16. Bc2 {[%clk 0:02:32.9]} 16... a4 {[%clk
0:01:46.7]} 17. d4 {[%clk 0:02:32.6]} 17... Re8 {[%clk 0:01:45]} 18. b3 {[%clk
0:02:27.6]} 18... axb3 {[%clk 0:01:40.6]} 19. axb3 {[%clk 0:02:27.4]} 19... Qb6
{[%clk 0:01:40.5]} 20. Rxa7 {[%clk 0:02:13.6]} 20... Qxa7 {[%clk 0:01:41.4]} 21.
Nf5 {[%clk 0:02:13.8]} 21... Qc7 {[%clk 0:01:29.4]} 22. Qa1 {[%clk 0:02:04.2]}
22... c5 {[%clk 0:01:27]} 23. dxe5 {[%clk 0:02:00.8]} 23... dxe5 {[%clk
0:01:23.7]} 24. Qa6 {[%clk 0:02:00]} 24... b4 {[%clk 0:01:14.6]} 25. c4 {[%clk
0:01:57.4]} 25... Rd8 {[%clk 0:01:12.4]} 26. Ne3 {[%clk 0:01:55.3]} 26... Rd6
{[%clk 0:00:36.5]} 27. Qa1 {[%clk 0:01:54.2]} 27... Rd8 {[%clk 0:00:15.4]} 28.
Nd5 {[%clk 0:01:53.2]} 28... Qd6 {[%clk 0:00:15.9]} 29. Rd1 {[%clk 0:01:46]}
29... Bxd5 {[%clk 0:00:16.2]} 30. cxd5 {[%clk 0:01:42.4]} 30... Ne8 {[%clk
0:00:14.6]} 31. Bd3 {[%clk 0:01:39]} 31... Qb6 {[%clk 0:00:13.9]} 32. Nxe5
{[%clk 0:01:38.4]} 32... Nxe5 {[%clk 0:00:14.1]} 33. Qxe5 {[%clk 0:01:38.1]}
33... Nd6 {[%clk 0:00:15]} 34. Qg3 {[%clk 0:01:32.2]} 34... f6 {[%clk
0:00:12.4]} 35. Qe3 {[%clk 0:01:30.6]} 35... Rc8 {[%clk 0:00:10.3]} 36. Rc1
{[%clk 0:01:29.5]} 36... Qa5 {[%clk 0:00:09.6]} 37. f4 {[%clk 0:01:19]} 37...
Qa3 {[%clk 0:00:08.8]} 38. e5 {[%clk 0:01:19]} 38... Nf7 {[%clk 0:00:05.7]} 39.
Rxc5 {[%clk 0:01:04.1]} 39... Rxc5 {[%clk 0:00:05.5]} 40. Qxc5 {[%clk 0:01:05]}
40... fxe5 {[%clk 0:00:05.6]} 41. Qc8+ {[%clk 0:01:04.2]} 1-0

[Event "Late-Titled-Tuesday-Blitz-June-25-2024"]
[Site "Chess.com"]
[Date "2024.06.25"]
[Round "9"]
[White "jcmesafischer"]
[Black "canary2016"]
[Result "1-0"]
[WhiteElo "2354"]
[BlackElo "2215"]
[TimeControl "180+1"]
[EndTime "15:44:07 PDT"]
[Termination "jcmesafischer won on time"]

1. e4 {[%clk 0:03:00.9]} 1... c5 {[%clk 0:02:58.3]} 2. Nf3 {[%clk 0:02:57.2]}
2... d6 {[%clk 0:02:56.4]} 3. d4 {[%clk 0:02:54.7]} 3... cxd4 {[%clk 0:02:56.3]}
4. Nxd4 {[%clk 0:02:55.5]} 4... Nf6 {[%clk 0:02:55.9]} 5. Nc3 {[%clk 0:02:55.9]}
5... a6 {[%clk 0:02:56]} 6. Bg5 {[%clk 0:02:53]} 6... e6 {[%clk 0:02:55.7]} 7.
f4 {[%clk 0:02:51.4]} 7... h6 {[%clk 0:02:55.6]} 8. Bh4 {[%clk 0:02:50.3]} 8...
Qb6 {[%clk 0:02:55]} 9. a3 {[%clk 0:02:41.3]} 9... Be7 {[%clk 0:02:53.3]} 10.
Bf2 {[%clk 0:02:41.3]} 10... Qc7 {[%clk 0:02:51.9]} 11. g4 {[%clk 0:02:41.2]}
11... Nc6 {[%clk 0:02:48.4]} 12. Be2 {[%clk 0:02:17.7]} 12... e5 {[%clk
0:02:42.5]} 13. fxe5 {[%clk 0:02:00.9]} 13... dxe5 {[%clk 0:02:41.2]} 14. Nf5
{[%clk 0:01:59.4]} 14... Bxf5 {[%clk 0:02:36.7]} 15. gxf5 {[%clk 0:01:58.1]}
15... Rd8 {[%clk 0:02:33.5]} 16. Nd5 {[%clk 0:01:38.2]} 16... Nxd5 {[%clk
0:02:25.8]} 17. exd5 {[%clk 0:01:39.1]} 17... Nb8 {[%clk 0:02:15.4]} 18. Qd3
{[%clk 0:01:22.6]} 18... Qa5+ {[%clk 0:02:07.8]} 19. c3 {[%clk 0:00:57.2]} 19...
Rxd5 {[%clk 0:02:00.4]} 20. Qc4 {[%clk 0:00:55]} 20... O-O {[%clk 0:01:55.5]}
21. Rg1 {[%clk 0:00:50.8]} 21... Nd7 {[%clk 0:01:48.4]} 22. b4 {[%clk
0:00:48.4]} 22... Qa4 {[%clk 0:00:16.3]} 23. Qxd5 {[%clk 0:00:39.9]} 23... Nf6
{[%clk 0:00:16.2]} 24. Qg2 {[%clk 0:00:37.5]} 24... Ne8 {[%clk 0:00:12.4]} 25.
Be3 {[%clk 0:00:30.5]} 25... Qc2 {[%clk 0:00:10.1]} 26. Rc1 {[%clk 0:00:26.2]}
26... Qb2 {[%clk 0:00:05.6]} 27. Bxh6 {[%clk 0:00:23.6]} 27... Bh4+ {[%clk
0:00:05.5]} 28. Kf1 {[%clk 0:00:22.4]} 1-0

[Event "Late-Titled-Tuesday-Blitz-June-25-2024"]
[Site "Chess.com"]
[Date "2024.06.25"]
[Round "9"]
[White "FMOlexandrProhorov"]
[Black "RTchess367"]
[Result "1-0"]
[WhiteElo "2371"]
[BlackElo "2234"]
[TimeControl "180+1"]
[EndTime "15:44:12 PDT"]
[Termination "FMOlexandrProhorov won on time"]

1. e4 {[%clk 0:03:00.9]} 1... c5 {[%clk 0:02:40.1]} 2. c3 {[%clk 0:02:59.5]}
2... Nf6 {[%clk 0:02:39.4]} 3. e5 {[%clk 0:02:59.8]} 3... Nd5 {[%clk 0:02:39.8]}
4. Nf3 {[%clk 0:03:00.1]} 4... d6 {[%clk 0:02:34.4]} 5. Bc4 {[%clk 0:02:57.7]}
5... Nb6 {[%clk 0:02:34.7]} 6. Bb3 {[%clk 0:02:57.1]} 6... c4 {[%clk 0:02:30.5]}
7. Bc2 {[%clk 0:02:56.8]} 7... dxe5 {[%clk 0:02:26.9]} 8. Nxe5 {[%clk
0:02:51.6]} 8... Qd5 {[%clk 0:02:27]} 9. Qe2 {[%clk 0:02:21.4]} 9... Be6 {[%clk
0:02:25.1]} 10. O-O {[%clk 0:02:18.4]} 10... g6 {[%clk 0:02:25.1]} 11. d4 {[%clk
0:02:15.8]} 11... cxd3 {[%clk 0:02:20.6]} 12. Bxd3 {[%clk 0:02:11.7]} 12... Bg7
{[%clk 0:02:12.8]} 13. Bf4 {[%clk 0:02:10.7]} 13... O-O {[%clk 0:02:12.4]} 14.
Nd2 {[%clk 0:02:05.4]} 14... Nc6 {[%clk 0:02:04.5]} 15. Be4 {[%clk 0:01:59.7]}
15... Qc5 {[%clk 0:01:43.7]} 16. Nxc6 {[%clk 0:01:58.6]} 16... bxc6 {[%clk
0:01:44.1]} 17. Be3 {[%clk 0:01:53]} 17... Qd6 {[%clk 0:01:36.2]} 18. Bf3 {[%clk
0:01:40.2]} 18... Nd5 {[%clk 0:01:29.7]} 19. Ne4 {[%clk 0:01:36.4]} 19... Qe5
{[%clk 0:01:26.7]} 20. Bd4 {[%clk 0:01:33]} 20... Nf4 {[%clk 0:01:22.3]} 21. Qe3
{[%clk 0:01:18.4]} 21... Qf5 {[%clk 0:01:19.7]} 22. Bxg7 {[%clk 0:01:14.5]}
22... Kxg7 {[%clk 0:01:19.8]} 23. Rfd1 {[%clk 0:01:09.2]} 23... Bd5 {[%clk
0:01:14]} 24. c4 {[%clk 0:00:51.6]} 24... Bxc4 {[%clk 0:01:11.5]} 25. Qc3+
{[%clk 0:00:47.6]} 25... e5 {[%clk 0:01:08.3]} 26. Qxc4 {[%clk 0:00:47.6]} 26...
Nd5 {[%clk 0:01:04.4]} 27. Qxc6 {[%clk 0:00:42.5]} 27... Nf4 {[%clk 0:01:02.8]}
28. Qd7 {[%clk 0:00:35.7]} 28... Nh3+ {[%clk 0:00:58.2]} 29. Kh1 {[%clk
0:00:30]} 1-0

[Event "Late-Titled-Tuesday-Blitz-June-25-2024"]
[Site "Chess.com"]
[Date "2024.06.25"]
[Round "9"]
[White "Oleksandr_Bortnyk"]
[Black "HansOnTwitch"]
[Result "0-1"]
[WhiteElo "3071"]
[BlackElo "3127"]
[TimeControl "180+1"]
[EndTime "15:44:22 PDT"]
[Termination "HansOnTwitch won on time"]

1. e4 {[%clk 0:03:00.9]} 1... c5 {[%clk 0:02:59.5]} 2. Be2 {[%clk 0:02:59.9]}
2... Nc6 {[%clk 0:02:54.1]} 3. f4 {[%clk 0:02:59.6]} 3... d6 {[%clk 0:02:48.8]}
4. Nf3 {[%clk 0:02:59.3]} 4... Nf6 {[%clk 0:02:48.6]} 5. d3 {[%clk 0:03:00]}
5... g6 {[%clk 0:02:49.1]} 6. O-O {[%clk 0:03:00.6]} 6... Bg7 {[%clk 0:02:49.8]}
7. Kh1 {[%clk 0:03:01.4]} 7... O-O {[%clk 0:02:49.8]} 8. c3 {[%clk 0:03:02]}
8... Rb8 {[%clk 0:02:41.5]} 9. Be3 {[%clk 0:03:00.7]} 9... Ng4 {[%clk
0:02:38.2]} 10. Bg1 {[%clk 0:03:00.1]} 10... f5 {[%clk 0:02:38.8]} 11. Ng5
{[%clk 0:02:38]} 11... Nh6 {[%clk 0:02:14.3]} 12. Qb3+ {[%clk 0:02:28.4]} 12...
Kh8 {[%clk 0:02:14.3]} 13. Nd2 {[%clk 0:02:23.3]} 13... e5 {[%clk 0:02:11.1]}
14. Be3 {[%clk 0:02:05.7]} 14... Qe7 {[%clk 0:02:04.3]} 15. Rae1 {[%clk
0:01:53.3]} 15... Bd7 {[%clk 0:01:59.2]} 16. a4 {[%clk 0:01:40.5]} 16... Bf6
{[%clk 0:01:43]} 17. Nc4 {[%clk 0:01:15.4]} 17... b6 {[%clk 0:01:24.8]} 18. fxe5
{[%clk 0:00:18.1]} 18... Bxg5 {[%clk 0:01:15]} 19. exd6 {[%clk 0:00:18.7]} 19...
Qd8 {[%clk 0:01:14.7]} 20. Bxg5 {[%clk 0:00:08.1]} 20... Qxg5 {[%clk 0:01:15.6]}
21. e5 {[%clk 0:00:09]} 21... Ng4 {[%clk 0:01:08.8]} 22. Bf3 {[%clk 0:00:05.3]}
22... Qh4 {[%clk 0:01:00.1]} 23. h3 {[%clk 0:00:05.3]} 23... Qg3 {[%clk
0:00:56.4]} 24. hxg4 {[%clk 0:00:03.5]} 24... fxg4 {[%clk 0:00:57.3]} 25. Bxg4
{[%clk 0:00:01.1]} 25... Bxg4 {[%clk 0:00:57.3]} 26. Qc2 {[%clk 0:00:01.2]}
26... Rxf1+ {[%clk 0:00:53.8]} 27. Rxf1 {[%clk 0:00:02.1]} 27... Nxe5 {[%clk
0:00:54.3]} 28. Nxe5 {[%clk 0:00:01.3]} 28... Qxe5 {[%clk 0:00:55.2]} 29. Qf2
{[%clk 0:00:01.2]} 29... Qxd6 {[%clk 0:00:53.4]} 30. Qf7 {[%clk 0:00:01.6]}
30... Bf5 {[%clk 0:00:48.9]} 31. d4 {[%clk 0:00:01.1]} 31... Rf8 {[%clk
0:00:48]} 32. Qxa7 {[%clk 0:00:01.2]} 32... cxd4 {[%clk 0:00:48.3]} 33. cxd4
{[%clk 0:00:01.6]} 33... Qxd4 {[%clk 0:00:47.9]} 34. a5 {[%clk 0:00:01.8]} 34...
Qc4 {[%clk 0:00:43.7]} 35. Rd1 {[%clk 0:00:01.5]} 35... Be4 {[%clk 0:00:39.1]}
36. Qe7 {[%clk 0:00:01.6]} 36... Bxg2+ {[%clk 0:00:31.7]} 37. Kh2 {[%clk
0:00:02.1]} 37... Qf4+ {[%clk 0:00:31.9]} 38. Kxg2 {[%clk 0:00:01.8]} 38... Qg4+
{[%clk 0:00:30.3]} 39. Kh2 {[%clk 0:00:02.6]} 39... Rf2+ {[%clk 0:00:30.1]} 0-1

[Event "Late-Titled-Tuesday-Blitz-June-25-2024"]
[Site "Chess.com"]
[Date "2024.06.25"]
[Round "9"]
[White "JanistanTV"]
[Black "VD_coach"]
[Result "1-0"]
[WhiteElo "2678"]
[BlackElo "2567"]
[TimeControl "180+1"]
[EndTime "15:44:22 PDT"]
[Termination "JanistanTV won on time"]

1. d4 {[%clk 0:03:00.9]} 1... Nf6 {[%clk 0:02:44.2]} 2. c4 {[%clk 0:03:00.4]}
2... g6 {[%clk 0:02:41.8]} 3. Nc3 {[%clk 0:02:59.5]} 3... Bg7 {[%clk 0:02:42]}
4. e4 {[%clk 0:02:59.1]} 4... O-O {[%clk 0:02:41.9]} 5. Nf3 {[%clk 0:02:58.4]}
5... d6 {[%clk 0:02:41.5]} 6. Be2 {[%clk 0:02:58.2]} 6... c5 {[%clk 0:02:38.1]}
7. O-O {[%clk 0:02:57]} 7... Bg4 {[%clk 0:02:28.8]} 8. dxc5 {[%clk 0:02:43.5]}
8... dxc5 {[%clk 0:02:24.4]} 9. Be3 {[%clk 0:02:42.9]} 9... Nfd7 {[%clk
0:02:21]} 10. Qd2 {[%clk 0:02:36.8]} 10... Nc6 {[%clk 0:02:12.1]} 11. Rfd1
{[%clk 0:02:36.8]} 11... Bxf3 {[%clk 0:02:11.7]} 12. Bxf3 {[%clk 0:02:36.8]}
12... Nd4 {[%clk 0:02:07.5]} 13. Ne2 {[%clk 0:02:15.7]} 13... Nxf3+ {[%clk
0:01:54.5]} 14. gxf3 {[%clk 0:02:16.6]} 14... Ne5 {[%clk 0:01:54.4]} 15. Qxd8
{[%clk 0:02:14]} 15... Rfxd8 {[%clk 0:01:49.2]} 16. Bxc5 {[%clk 0:02:12.2]}
16... Nxc4 {[%clk 0:01:38]} 17. Bxe7 {[%clk 0:02:08.4]} 17... Re8 {[%clk
0:01:28.8]} 18. Rd7 {[%clk 0:02:03]} 18... Ne5 {[%clk 0:00:31.6]} 19. Rxb7
{[%clk 0:02:02.1]} 19... Nxf3+ {[%clk 0:00:31.8]} 20. Kg2 {[%clk 0:02:01.8]}
20... Nd2 {[%clk 0:00:30.6]} 21. f3 {[%clk 0:01:56.3]} 21... Nc4 {[%clk
0:00:25.8]} 22. Rc1 {[%clk 0:01:52.1]} 22... Nxb2 {[%clk 0:00:16.6]} 23. Rcc7
{[%clk 0:01:41.5]} 23... Nd3 {[%clk 0:00:13.6]} 24. Rxa7 {[%clk 0:01:27.6]}
24... Rxa7 {[%clk 0:00:13]} 25. Rxa7 {[%clk 0:01:28.5]} 25... f5 {[%clk
0:00:09.6]} 26. exf5 {[%clk 0:01:22.2]} 26... Bf8 {[%clk 0:00:09.6]} 27. f6
{[%clk 0:01:18.9]} 27... Bxe7 {[%clk 0:00:09.7]} 28. fxe7 {[%clk 0:01:14.9]}
28... Kf7 {[%clk 0:00:09.6]} 29. a4 {[%clk 0:01:10.5]} 29... Rxe7 {[%clk
0:00:09.7]} 30. Rxe7+ {[%clk 0:01:10.7]} 30... Kxe7 {[%clk 0:00:10.6]} 31. a5
{[%clk 0:01:10.8]} 31... Kd6 {[%clk 0:00:10.2]} 32. Kg3 {[%clk 0:01:07.6]} 32...
Kc6 {[%clk 0:00:10.4]} 33. Nd4+ {[%clk 0:01:05.3]} 33... Kb7 {[%clk 0:00:07.7]}
34. Ne6 {[%clk 0:01:05.2]} 34... Ka6 {[%clk 0:00:07.3]} 35. Nf8 {[%clk 0:01:05]}
35... Kxa5 {[%clk 0:00:07.5]} 36. Nxh7 {[%clk 0:01:03.9]} 36... Kb6 {[%clk
0:00:08]} 37. Nf8 {[%clk 0:01:03.3]} 37... Kc6 {[%clk 0:00:06.5]} 38. Nxg6
{[%clk 0:01:03.1]} 38... Kd6 {[%clk 0:00:07.2]} 39. Kg4 {[%clk 0:01:01.1]} 39...
Nc5 {[%clk 0:00:04.3]} 40. h4 {[%clk 0:00:57.9]} 40... Ke6 {[%clk 0:00:04.8]}
41. Kg5 {[%clk 0:00:55.4]} 41... Kf7 {[%clk 0:00:04.3]} 42. Kf5 {[%clk
0:00:52.8]} 42... Nd3 {[%clk 0:00:02.6]} 43. f4 {[%clk 0:00:51.4]} 43... Kg7
{[%clk 0:00:01.5]} 44. Kg5 {[%clk 0:00:49.9]} 44... Nf2 {[%clk 0:00:01.6]} 45.
h5 {[%clk 0:00:47.9]} 1-0

[Event "Late-Titled-Tuesday-Blitz-June-25-2024"]
[Site "Chess.com"]
[Date "2024.06.25"]
[Round "9"]
[White "Sanan_Sjugirov"]
[Black "Raja3401"]
[Result "0-1"]
[WhiteElo "2987"]
[BlackElo "2799"]
[TimeControl "180+1"]
[EndTime "15:44:23 PDT"]
[Termination "Raja3401 won on time"]

1. c4 {[%clk 0:03:00.9]} 1... Nf6 {[%clk 0:02:59.6]} 2. d4 {[%clk 0:03:00.5]}
2... e6 {[%clk 0:02:59.6]} 3. Nf3 {[%clk 0:03:00.3]} 3... d5 {[%clk 0:02:59.4]}
4. g3 {[%clk 0:03:00.5]} 4... Be7 {[%clk 0:02:59.8]} 5. Bg2 {[%clk 0:03:00.5]}
5... O-O {[%clk 0:03:00.7]} 6. O-O {[%clk 0:03:01]} 6... dxc4 {[%clk 0:03:01.6]}
7. Qc2 {[%clk 0:03:00.9]} 7... b6 {[%clk 0:03:02.1]} 8. Ne5 {[%clk 0:02:53.2]}
8... Qxd4 {[%clk 0:03:01.5]} 9. Bxa8 {[%clk 0:02:52.5]} 9... Qxe5 {[%clk
0:03:01.2]} 10. Bg2 {[%clk 0:02:39.1]} 10... Nd5 {[%clk 0:02:59.1]} 11. Nc3
{[%clk 0:02:36.4]} 11... Nc6 {[%clk 0:02:41.4]} 12. Nxd5 {[%clk 0:02:24.4]}
12... exd5 {[%clk 0:02:42.3]} 13. Bf4 {[%clk 0:02:24.8]} 13... Qe6 {[%clk
0:02:42.1]} 14. Rad1 {[%clk 0:02:19.7]} 14... Nb4 {[%clk 0:02:24.6]} 15. Qd2
{[%clk 0:02:14]} 15... c6 {[%clk 0:02:21.8]} 16. a3 {[%clk 0:01:24.4]} 16... Na6
{[%clk 0:02:21.6]} 17. e4 {[%clk 0:00:55.9]} 17... dxe4 {[%clk 0:02:22.5]} 18.
Bxe4 {[%clk 0:00:56.2]} 18... Nc5 {[%clk 0:01:31.8]} 19. Bc2 {[%clk 0:00:47.2]}
19... Bf6 {[%clk 0:01:23.2]} 20. Rfe1 {[%clk 0:00:43.9]} 20... Qh3 {[%clk
0:01:01.1]} 21. Bd6 {[%clk 0:00:14.5]} 21... Bg4 {[%clk 0:00:59.7]} 22. Bf5
{[%clk 0:00:04.4]} 22... Bxf5 {[%clk 0:00:36.5]} 23. Bxf8 {[%clk 0:00:04.6]}
23... Ne4 {[%clk 0:00:31.5]} 24. Qf4 {[%clk 0:00:04.5]} 24... g5 {[%clk
0:00:07.7]} 25. Qb8 {[%clk 0:00:04]} 25... h6 {[%clk 0:00:01.2]} 26. Be7+ {[%clk
0:00:02.8]} 26... Kh7 {[%clk 0:00:01.7]} 0-1